Cogmind - Beta 11 X8 @@@ ROGUE MODE // 2021.10.28 @ 17:30:35 Player: thomas Result: Self-destructed Performance ------------- Evolutions (0) 0 Regions Visited (4) 800 Robots Destroyed (17) 85 Value Destroyed (362) 362 Prototype IDs (23) 460 Alien Tech Used (0) 0 Bonus (300) 300 TOTAL SCORE: 2007 Bonus ------- Aligned with FarCom 300 Cogmind --------- Core Integrity 38/250 Matter 291/300 Energy 100/100 System Corruption 17% Temperature Cool (0) Movement Core (350) Ox6 Location -9/Mines Parts ------- > --- POWER (1) -------- (None) > --- PROPULSION (2) --- Improved Treads > --- UTILITY (2) ------ Improved Heat Sink Large Storage Unit > --- WEAPON (2) ------- (None) > --- INVENTORY (15) --- Light Ion Engine Improved Heat Sink Small Storage Unit Medium Storage Unit Targeting Computer Light Armor Plating Heavy EM Pulse Gun Particle Gun XL Autogun Array Peak State ------------ > --- POWER ------------ Ion Engine > --- PROPULSION ------- Improved Treads Improved Treads > --- UTILITY ---------- Improved Heat Sink Large Storage Unit > --- WEAPON ----------- Heavy EM Pulse Gun Beam Cannon > --- INVENTORY -------- Light Ion Engine Compact Wheel Improved Heat Sink Small Storage Unit Medium Storage Unit Targeting Computer Light Armor Plating Heavy EM Pulse Gun Particle Gun XL Autogun Array [Rating: 16] Favorites ----------- Power Ion Engine Engine Ion Engine Propulsion Improved Treads Treads Improved Treads Wheel Compact Wheel Utility Improved Heat Sink Device Improved Heat Sink Storage Large Storage Unit Weapon Beam Cannon Energy Gun Heavy EM Pulse Gun Energy Cannon Beam Cannon Ballistic Gun Light Assault Rifle Build | -11 -10 -10 -10 -9 ------- Run | Scr Mat Min Exi Min Slots Evolved . | . . . . . Power . | . . . . . Propulsion . | . . . . . Utility . | . . . . . Weapon . | . . . . . Parts Attached 17 | 6 9 . 1 1 Power 2 | 1 1 . . . Engine 2 | 1 1 . . . Core . | . . . . . Reactor . | . . . . . Propulsion 5 | 2 2 . . 1 Treads 2 | . 2 . . . Leg . | . . . . . Wheel 3 | 2 . . . 1 Hover . | . . . . . Flight . | . . . . . Utility 4 | 1 3 . . . Device 2 | . 2 . . . Storage 2 | 1 1 . . . Processor . | . . . . . Hackware . | . . . . . Protection . | . . . . . Artifact . | . . . . . Weapon 6 | 2 3 . 1 . Energy Gun 3 | . 2 . 1 . Energy Cannon 1 | . 1 . . . Ballistic Gun 2 | 2 . . . . Ballistic Cannon . | . . . . . Launcher . | . . . . . Special Weapon . | . . . . . Impact Weapon . | . . . . . Slashing Weapon . | . . . . . Piercing Weapon . | . . . . . Special Melee Weapon . | . . . . . Unidentified Prototypes . | . . . . . Parts Lost 5 | . . . 1 4 Power 1 | . . . . 1 Propulsion 2 | . . . 1 1 Utility . | . . . . . Weapon 2 | . . . . 2 Highest Loss Streak 3 | . . . 1 3 Average Slot Usage (%) 97 | . 98 100 100 88 Engine 13 | . 14 14 14 13 Treads 18 | . 12 28 28 14 Wheel 8 | . 15 . . 11 Device 13 | . 12 14 14 14 Storage 14 | . 14 14 14 14 Energy Gun 12 | . 10 14 14 14 Energy Cannon 11 | . 12 14 14 6 Ballistic Gun 2 | . 5 . . . Naked Turns . | . . . . . Heaviest Build 32 | 10 32 32 32 32 Greatest Support 46 | 26 46 46 46 23 Greatest Overweight (x) 9 | . 1 . 1 9 Average Overweight (x) . | . . . . 1 Largest Inventory Capacity 15 | 8 15 15 15 15 Average Capacity 14 | 6 14 15 15 15 Most Carried 15 | 4 15 15 15 13 Average Carried 12 | 2 11 15 13 12 Final Capacity 15 | 8 15 15 15 15 Final Carried 15 | 4 15 15 13 12 Class Distribution -------------------- 100% | Mutant Dominant Class ---------------- Mutant | -10/Materials Mutant | -10/Mines Mutant | -10/Exiles Mutant | -9/Mines Resources | -11 -10 -10 -10 -9 ----------- Run | Scr Mat Min Exi Min Matter Collected 384 | 166 218 . . . Remotely . | . . . . . Salvage Created 608 | . 537 54 . 17 Parts 46 | . 37 9 . . Haulers Intercepted 1 | . 1 . . . Recyclers Shooed . | . . . . . Parts Field Recycled . | . . . . . Retrieved Matter . | . . . . . Parts Self-Destructed . | . . . . . Prevented . | . . . . . Kills | -11 -10 -10 -10 -9 ------- Run | Scr Mat Min Exi Min Combat Hostiles Destroyed 11 | . 7 3 . 1 Guns 7 | . 4 2 . 1 Cannons 3 | . 2 1 . . AOE 1 | . 1 . . . Classes Destroyed 8 | . 6 1 . 1 Worker 2 | . 2 . . . Hauler 1 | . 1 . . . Recycler 1 | . 1 . . . Operator 1 | . 1 . . . Watcher 2 | . 2 . . . Swarmer 3 | . . 3 . . Grunt 7 | . 7 . . . Assembled 1 | . . . . 1 Best Kill Streak 7 | . 7 3 . 1 Combat Bots Only 3 | . 3 3 . 1 Max Kills in Single Turn 2 | . 2 1 . 1 Gunslinging . | . . . . . Exploded 1 | . 1 . . . Melee . | . . . . . Uniques/NPCs Destroyed . | . . . . . Combat | -11 -10 -10 -10 -9 -------- Run | Scr Mat Min Exi Min Damage Taken 940 | . 271 71 363 235 Core 212 | . 47 . 61 104 Absorbed by Shields . | . . . . . Core Remaining (%) 100 | 100 . . . . Volleys Fired 42 | . 34 5 . 3 Largest 2 | . 2 2 . 2 Hottest 105 | . 105 105 . 105 Shots Fired 84 | . 68 10 1 5 Gun 53 | . 44 5 1 3 Cannon 31 | . 24 5 . 2 Launcher . | . . . . . Special . | . . . . . Kinetic 22 | . 22 . . . Thermal 31 | . 24 5 . 2 Explosive . | . . . . . Electromagnetic 31 | . 22 5 1 3 Robot Hit Streak 7 | . 7 2 . 4 Robot Miss Streak 3 | . 3 3 . 1 Penetration Max . | . . . . . Secondary Targets 1 | . 1 . . . Max Gunslinging Chain 1 | . 1 . . . Shots Hit Robots 49 | . 41 4 . 4 Core Hits 27 | . 22 3 . 2 Critical Kills . | . . . . . Critical Parts Destroyed . | . . . . . Critical Strikes . | . . . . . Melee Attacks . | . . . . . Impact . | . . . . . Slashing . | . . . . . Piercing . | . . . . . Sneak Attacks . | . . . . . Combat Hostiles . | . . . . . Follow-up Attacks . | . . . . . Damage Inflicted 825 | . 683 80 . 62 Guns 448 | . 377 43 . 28 Cannons 297 | . 226 37 . 34 Explosions 80 | . 80 . . . Melee . | . . . . . Ramming . | . . . . . Kinetic 132 | . 132 . . . Thermal 377 | . 306 37 . 34 Explosive . | . . . . . Electromagnetic 316 | . 245 43 . 28 Impact . | . . . . . Slashing . | . . . . . Piercing . | . . . . . Highest Corruption 17 | . 5 5 5 17 Average Corruption 5 | . 4 5 5 5 Corruption Purged . | . . . . . Effects 22 | . 9 1 7 5 Message Errors 7 | . 3 1 . 3 Matter Fused 4 | . 2 . 2 . Heat Flow Errors 3 | . 1 . 1 1 Energy Discharges 2 | . 2 . . . Data Loss (minor) 2 | . . . 1 1 Data Loss (major) 3 | . 1 . 2 . Misfires 1 | . . . 1 . Overload Shots . | . . . . . Overflow Damage . | . . . . . Projectiles . | . . . . . Explosions . | . . . . . Melee . | . . . . . Knockbacks . | . . . . . Impact . | . . . . . Kinetic . | . . . . . Secondary . | . . . . . Self-Inflicted Damage 10 | . 10 . . . Shots 1 | . 1 . . . Rammed 1 | . 1 . . . Targets Rammed 1 | . 1 . . . Kicked . | . . . . . Crushed . | . . . . . Highest Temperature 170 | . 170 9 95 126 Average Temperature 30 | . 34 4 62 32 Received Heat Transfer 200 | . 120 . 80 . Siege Activations . | . . . . . Robots Corrupted . | . . . . . Combat Hostiles . | . . . . . Parts Fried . | . . . . . Impact Corruptions . | . . . . . Robots Melted . | . . . . . Combat Hostiles . | . . . . . Parts Melted . | . . . . . Heat Transferred 679 | . 531 74 . 74 Parts Sabotaged . | . . . . . Parts Stolen . | . . . . . Parts Stripped . | . . . . . Power Chain Reactions 2 | . 2 . . . Missiles Intercepted . | . . . . . Alert | -11 -10 -10 -10 -9 ------- Run | Scr Mat Min Exi Min Peak Influence 139 | . 139 124 . . Initial 54 | . . 54 . . Average 38 | . 45 83 . . Maximum Alert Level . | . . . . . Low Security (%) 100 | 100 100 100 . 100 Level 1 . | . . . . . Level 2 . | . . . . . Level 3 . | . . . . . Level 4 . | . . . . . Level 5 . | . . . . . High Security . | . . . . . Max Security . | . . . . . Squads Dispatched 2 | . 2 . . . Investigation 1 | . 1 . . . Extermination . | . . . . . Reinforcement 1 | . 1 . . . Assault . | . . . . . Garrison . | . . . . . Intercept . | . . . . . Construction Impeded . | . . . . . Haulers Reinforced . | . . . . . Active Scanning Responses . | . . . . . Cargo Convoy Interrupts . | . . . . . Stealth | -11 -10 -10 -10 -9 --------- Run | Scr Mat Min Exi Min Distress Signals . | . . . . . Communications Jammed . | . . . . . Distress Signals . | . . . . . Times Spotted 32 | . 18 3 7 4 Peak Tracking Total 9 | . 4 3 9 6 Tactical Retreats 1 | . . . . 1 Traps | -11 -10 -10 -10 -9 ------- Run | Scr Mat Min Exi Min Traps Triggered 5 | . 5 . . . Indirectly . | . . . . . Trap Hack Attempts . | . . . . . Triggered . | . . . . . Disarmed . | . . . . . Reprogrammed . | . . . . . Reused . | . . . . . Traps Extracted . | . . . . . Installed . | . . . . . Triggered . | . . . . . Machines | -11 -10 -10 -10 -9 ---------- Run | Scr Mat Min Exi Min Machines Disabled 2 | . 1 . 1 . Max in Single Turn 1 | . 1 . 1 . Machines Sabotaged . | . . . . . Garrisons Compromised . | . . . . . Overloaded Fab Kills . | . . . . . Hacking | -11 -10 -10 -10 -9 --------- Run | Scr Mat Min Exi Min Machines Accessed 7 | . 4 1 2 . Terminals 5 | . 4 1 . . Fabricators . | . . . . . Repair Stations . | . . . . . Recycling Units . | . . . . . Scanalyzers . | . . . . . Garrison Access . | . . . . . Total Hacks 35 | . 10 1 24 . Successful 29 | . 4 1 24 . Failed 6 | . 6 . . . Catastrophic 2 | . 2 . . . Database Lockouts . | . . . . . Manual 14 | . 11 2 1 . Terminals 11 | . 10 1 . . Fabricators . | . . . . . Repair Stations . | . . . . . Recycling Units . | . . . . . Scanalyzers . | . . . . . Garrison Access . | . . . . . Terminal Hacks 27 | . 2 1 24 . Record 23 | . . . 23 . Robot Analysis 2 | . 1 1 . . Unreport Threat 1 | . 1 . . . EX-Prototype ID Bank 1 | . . . 1 . Fabricator Hacks . | . . . . . Repair Station Hacks . | . . . . . Recycling Unit Hacks . | . . . . . Scanalyzer . | . . . . . Garrison Access Hacks . | . . . . . Unauthorized Hacks 2 | . 2 . . . Terminals 2 | . 2 . . . Track 2 | . 2 . . . Fabricators . | . . . . . Repair Stations . | . . . . . Recycling Units . | . . . . . Scanalyzers . | . . . . . Garrison Access . | . . . . . Data Cores Recovered . | . . . . . Used . | . . . . . Hacking Detections 5 | . 4 1 . . Full Trace Events 1 | . 1 . . . Feedback Events . | . . . . . Feedback Blocked . | . . . . . Robot Schematics Acquired . | . . . . . Robots Built . | . . . . . Authchips . | . . . . . Time . | . . . . . Total Robot Build Rating . | . . . . . Part Schematics Acquired . | . . . . . Parts Built . | . . . . . Authchips . | . . . . . Time . | . . . . . Total Part Build Rating . | . . . . . Parts Repaired . | . . . . . Time . | . . . . . Parts Recycled . | . . . . . Recycled Matter . | . . . . . Retrieved Matter . | . . . . . Retrieved Components . | . . . . . Parts Scanalyzed . | . . . . . Part Schematics Acquired . | . . . . . Parts Damaged . | . . . . . Bothacking | -11 -10 -10 -10 -9 ------------ Run | Scr Mat Min Exi Min Used RIF Installer . | . . . . . Robots Hacked . | . . . . . Non-combat . | . . . . . Combat . | . . . . . Robot Hacks Applied . | . . . . . Relay Couplers Released . | . . . . . Robots Rewired . | . . . . . Allies Hacked . | . . . . . Hacks Repelled . | . . . . . Allies | -11 -10 -10 -10 -9 -------- Run | Scr Mat Min Exi Min Total Allies 2 | . . . . 2 Largest Group 2 | . . . . 2 Highest-Rated Group 45 | . . . . 45 Highest-Rated Ally 31 | . . . . 31 Total Orders . | . . . . . Ally Attacks 5 | . . . . 5 Total Damage 84 | . . . . 84 Kills 2 | . . . . 2 Allies Corrupted 1 | . . . . 1 Allies Melted . | . . . . . Intel | -11 -10 -10 -10 -9 ------- Run | Scr Mat Min Exi Min Robot Analysis Total 2 | . 1 1 . . Derelict Logs Recovered 1 | . . 1 . . Drone Launches . | . . . . . Drone Recoveries . | . . . . . Exploration | -11 -10 -10 -10 -9 ------------- Run | Scr Mat Min Exi Min Turns Passed 1295 | 45 557 126 370 197 Spaces Moved 811 | 37 339 70 227 138 Core 10 | 3 . . . 7 Treads 426 | . 127 70 227 2 Legs . | . . . . . Wheels 375 | 34 212 . . 129 Hover . | . . . . . Flight . | . . . . . Fastest Speed 50 | 50 90 160 160 115 Average Speed 137 | 87 123 160 161 135 Slowest Speed 500 | 100 240 160 240 500 Overloaded Moves . | . . . . . Propulsion Burnouts . | . . . . . Robots Hopped . | . . . . . Cave-ins Triggered . | . . . . . Exploration Rate (%) 33 | 3 50 14 60 38 Regions Visited 4 Branch Regions 3 Pre-discovered Areas 1 | . . . 1 . Known Exits Taken . | . . . . . Unknown Exits Taken 4 | 1 1 1 1 . Scrap Searched . | . . . . . Spaces Dug . | . . . . . Terrain Destroyed 5 | . 5 . . . Melee . | . . . . . Projectile . | . . . . . AOE 5 | . 5 . . . Terrain Rammed . | . . . . . Walls Destroyed . | . . . . . Machines Disabled . | . . . . . Actions | -11 -10 -10 -10 -9 --------- Run | Scr Mat Min Exi Min Total 909 | 46 413 74 234 142 Wait 9 | . 9 . . . Move 807 | 36 338 69 226 138 Hop . | . . . . . Pick Up 16 | 4 11 . 1 . Fast Attach 11 | 6 5 . . . Attach 2 | . . . 1 1 Detach 3 | . 3 . . . Swap 4 | . 4 . . . Drop 14 | . 8 . 6 . Fire 42 | . 34 5 . 3 Melee . | . . . . . Ram . | . . . . . Kick . | . . . . . Crush 1 | . 1 . . . Escape Stasis . | . . . . . Rewire . | . . . . . Trap . | . . . . . Miscellaneous . | . . . . . Route ------- -11/Scrapyard -10/Materials (discovered 2 exits: [*Mat] / *Min) -10/Mines -10/Exiles -9/Mines History --------- Turn | Location | Event 23 | -11/Scrapyard | Discovered new exit (range 16) 46 | -11/Scrapyard | Entered Materials 306 | -10/Materials | Discovered new exit (range 10) 314 | -10/Materials | Build established: Mutant 480 | -10/Materials | Discovered new exit (range 6) 603 | -10/Materials | Entered Mines 635 | -10/Mines | Learned 4 Materials zone layouts 721 | -10/Mines | Deemed a non-threat by the Exiles lab entrance 722 | -10/Mines | Discovered new exit (range 5) 729 | -10/Mines | Entered Exiles 768 | -10/Exiles | Met 8R-AWN 797 | -10/Exiles | Met EX-HEX 838 | -10/Exiles | Met EX-BIN 862 | -10/Exiles | Aligned with FarCom system 864 | -10/Exiles | Given EX-Vault access code 904 | -10/Exiles | Opened EX-Vault 922 | -10/Exiles | Found XL Autogun Array 957 | -10/Exiles | Warned to stay clear of 0b10 Research branches 1006 | -10/Exiles | Met EX-DEC 1018 | -10/Exiles | Learned location of Zion (-6) 1047 | -10/Exiles | Attacked by the Exiles 1078 | -10/Exiles | Discovered new exit (range 14) 1099 | -10/Exiles | Left Exiles lab with XL Autogun Array 1099 | -10/Exiles | Entered Mines 1121 | -9/Mines | Met a Derelict bent on vengeance 1151 | -9/Mines | Found a damaged Exp. Sensor Array with a note attached 1167 | -9/Mines | Assembled infested the area 1257 | -9/Mines | Core integrity fell below 50% 1288 | -9/Mines | System corruption reached 10% 1291 | -9/Mines | Core integrity fell below 20% 1296 | -9/Mines | Self-destructed Last Messages --------------- 01167_ ALERT: Infestation in the mines, dispatching Demolisher response squad. 01171_ System corrupted: Component data lost. 01185_ Beam Cannon destroyed. 01187_ as-92217 destroyed. 01194_ as-87493 destroyed. 01228_ K-01 Serf collects debris. 01231_ System corrupted: Heat flow error (+160). 01231_ K-01 Serf collects debris. 01262_ Com. Wheel destroyed. 01262_ System corrupted by crushing effect (+4). 01262_ Knocked back. 01262_ K-01 Serf collects debris. 01265_ HPUMCOK0I#QCIZEE,14P:= C9J 3U:TGXX>:WW| 01283_ Knocked back. 01287_ Ion Engine destroyed. 01287_ System corrupted by crushing effect (+4). 01294_ Hvy. EM Pulse Gun destroyed. 01294_ System corrupted by crushing effect (+4). 01294_ Knocked back. Map ----- +----------------------------------------------------+ | | | | | | | | | | | | | | | | | | | | | | | | | | | | | | | | | | | | | ??????????????????????????????????????????? | | ??????????######??????????????????????????? | | ?????????## ####???????????????????????? | | ????????## ##??????????????????????? | | ????????# #??????????????????????? | | ???????## #??????????????????????? | | ???????# ##??# ????????????????? | | ??????## a @ ### ???????????????? | | ??????# #??????????????? | | ??????# ##??????????????? | | ??????# #???????????????? | | ??????##### ##??????????????? | | ??????????# ##?????????????? | | ??????????# ####?????###?? | | ??????????# ##???## ### | | ??????????## k ##### | | ???????????# | | ???????????# ## ### | | ???????????## ###### ##?# | | ????????????## ##????## #??# | | ?????????????# ##?????## #??# | | ????????????## ##????### ##?# | | ????????????# ####### #?# | | ????????????# ## ### | | ????????##### ## | | ???????## ### ## ### | | ???????# ######## ##########?# | | ???????# ####### ########??????????# | | ???????# #?????????????????# | | ???????## ### ## #?????????????????### | | ????????### ##?# ## ##??????????????????? | | ??????????# #??# ## ##?????????????????? | +----------------------------------------------------+ Best States ------------- Heat Dissipation 39 Energy Generation 10 Energy Capacity 250 Matter Stores 300 Matter Capacity 300 Sight Range 16 Terrain Scan Density 10 Evasion (%) 42 Recoil Reduction 2 Item Schematics ----------------- None Robot Schematics ------------------ None Fabricated ------------ Nothing Alien Tech Used ----------------- None Achievements -------------- None Challenges ------------ None Game ------ Seed NovaDeliveryCompactor Manual? 0 Play Time 00:16:36 Cumulative 23.6 hours Start 2021.10.28 @ 16:41:07 End 2021.10.28 @ 17:30:35 Sessions 1 Manual Loads 0 Difficulty Rogue Special Mode None Game No. 40 Rogue 20 Adventurer 17 Explorer 3 Win Type - Total 0 Types 0/0/0/0/0/0/0/0/0 Lore% 18 Gallery% 26 Achievement% 37 Wizard Run 0 Options --------- ASCII 1 Keyboard 1 Movement Vi Keybinds 0 Fullscreen 2 Font 14/Terminus Map View 72x54 Tactical HUD 1 Map Filters NONE Filters NONE Steam 1 RUN: 07ef8311-93dd-40de-949d-5dbe24eb4626